bitfinex-derivatives/quotes_BTCF0:USTF0_20251230
["timestamp","ask_amount","ask_price","bid_price","bid_amount"]
[1767059313510,0.00017167,87384.0,87371.0,0.0114589]
[1767059313712,0.15476,87397.0,87371.0,0.0974]
[1767059313901,0.0114547,87404.0,87377.0,0.011458]
[1767059314100,0.15476,87408.0,87378.0,0.05736]
[1767059314402,0.0114543,87407.0,87378.0,0.05736]
[1767059314711,0.00017167,87401.0,87384.0,0.00017167]
[1767059316407,0.00017167,87401.0,87384.0,0.01162887]
[1767059317113,0.00017167,87401.0,87384.0,0.01162877]
[1767059317413,0.00017167,87401.0,87387.0,0.0114567]
[1767059319405,0.00017167,87401.0,87385.0,0.011457]
[1767059320207,0.00017167,87401.0,87384.0,0.00017167]
[1767059320607,0.00017167,87401.0,87385.0,0.011457]
[1767059322312,0.00017167,87401.0,87384.0,0.00017167]
[1767059324713,0.00228839,87398.0,87384.0,0.00017167]
[1767059325309,0.01374379,87398.0,87384.0,0.00017167]
[1767059326910,0.00228839,87398.0,87384.0,0.00017167]
[1767059329511,0.0114555,87397.0,87384.0,0.00017167]
[1767059330516,0.00228839,87398.0,87384.0,0.00017167]
[1767059340818,0.0114558,87395.0,87377.0,0.09736]
[1767059341021,0.0114558,87395.0,87378.0,0.05736]
[1767059341924,0.0114558,87395.0,87378.0,0.05753167]
[1767059342418,0.0114562,87392.0,87375.0,0.05736]
[1767059343423,0.0114562,87392.0,87375.0,0.05753167]
[1767059345426,0.09736,87395.0,87375.0,0.05753167]
[1767059345626,0.0114564,87390.0,87375.0,0.05753167]
[1767059346127,0.011456,87394.0,87375.0,0.05753167]
[1767059347323,0.0114563,87391.0,87375.0,0.05753167]
[1767059347723,0.1088159,87395.0,87375.0,0.05753167]
[1767059348431,0.09736,87395.0,87375.0,0.05753167]
[1767059349032,0.05171,87394.0,87375.0,0.05753167]
[1767059350326,0.011456,87393.0,87375.0,0.05753167]
[1767059352628,0.05171,87394.0,87375.0,0.05753167]
[1767059354530,0.05171,87394.0,87376.0,0.01778507]
[1767059354728,0.05171,87394.0,87377.0,0.01778507]
[1767059354926,0.05171,87394.0,87378.0,0.01778507]
[1767059355125,0.05171,87394.0,87379.0,0.01778507]
[1767059355326,0.05171,87394.0,87380.0,0.01778507]
[1767059355531,0.0114561,87393.0,87375.0,0.05753167]
[1767059357130,0.05171,87394.0,87375.0,0.05753167]
[1767059359137,0.05171,87394.0,87376.0,0.0114582]
[1767059361739,0.05171,87394.0,87375.0,0.05753167]
[1767059361939,0.0114561,87393.0,87375.0,0.05753167]
[1767059363134,0.05171,87394.0,87375.0,0.05753167]
[1767059363335,0.05171,87394.0,87375.0,0.06899007]
[1767059365541,0.05171,87394.0,87375.0,0.05753167]
[1767059368051,0.0114561,87393.0,87375.0,0.05753167]
[1767059368248,0.05171,87394.0,87375.0,0.00017167]
[1767059369145,0.15586011,87390.0,87375.0,0.00017167]
[1767059369346,0.0114574,87383.0,87368.0,0.05736]
[1767059370251,0.0114574,87383.0,87364.0,0.0114598]
[1767059370453,0.05736,87388.0,87366.0,0.00017167]
[1767059370454,0.15586011,87380.0,87366.0,0.00017167]
[1767059370839,0.00017167,87382.0,87366.0,0.00017167]
[1767059372049,0.0114576,87381.0,87366.0,0.00017167]
[1767059372249,0.15586011,87380.0,87366.0,0.00017167]
[1767059373264,0.0114579,87379.0,87366.0,0.00017167]
[1767059373649,0.15586011,87380.0,87366.0,0.00017167]
[1767059374250,0.16731791,87380.0,87366.0,0.00017167]
[1767059375052,0.0114578,87380.0,87366.0,0.00017167]
[1767059375245,0.04681,87379.0,87366.0,0.00017167]
[1767059379052,0.04681,87379.0,87366.0,0.01163117]
[1767059379862,0.04681,87379.0,87366.0,0.00017167]
[1767059384360,0.04681,87379.0,87366.0,0.01163127]
[1767059385362,0.04681,87379.0,87369.0,0.0114591]
[1767059386068,0.04681,87379.0,87366.0,0.00017167]
[1767059386266,0.04681,87379.0,87367.0,0.0114594]
[1767059388273,0.04681,87379.0,87366.0,0.00017167]
[1767059388866,0.04681,87379.0,87366.0,0.01163107]
[1767059389065,0.04681,87379.0,87366.0,0.00017167]
[1767059393875,0.04681,87379.0,87362.0,0.09736]
[1767059394069,0.02391864,87378.0,87362.0,0.09736]
[1767059394373,0.02391864,87377.0,87362.0,0.09736]
[1767059394573,0.02391864,87376.0,87362.0,0.09736]
[1767059394770,0.16731891,87372.0,87349.0,0.0114617]
[1767059394970,0.02391864,87371.0,87353.0,0.0974]
[1767059395268,0.02391864,87371.0,87354.0,0.011461]
[1767059396074,0.02391864,87371.0,87353.0,0.0974]
[1767059396264,0.03769223,87371.0,87353.0,0.0974]
[1767059396469,0.02391864,87370.0,87353.0,0.0974]
[1767059396669,0.05736,87369.0,87353.0,0.0974]
[1767059396869,0.02391864,87368.0,87353.0,0.0974]
[1767059397064,0.15586011,87363.0,87336.0,8.141e-05]
[1767059397265,0.00017167,87359.0,87336.0,8.141e-05]
[1767059397466,0.12131864,87358.0,87343.0,0.0114625]
[1767059397669,0.02391864,87357.0,87343.0,0.0114625]
[1767059397867,0.08127864,87356.0,87339.0,0.0114631]
[1767059398073,0.02391864,87355.0,87340.0,0.15586011]
[1767059398274,0.02391864,87354.0,87340.0,0.15586011]
[1767059398473,0.02391864,87353.0,87339.0,0.0114631]
[1767059398673,0.02391864,87352.0,87339.0,0.0114631]
[1767059398879,0.05736,87356.0,87339.0,0.0114631]
[1767059399081,0.023907,87355.0,87339.0,0.0114631]
[1767059399281,0.023907,87354.0,87339.0,0.0114631]
[1767059399481,0.04622,87355.0,87340.0,0.15586011]
[1767059399680,0.00017167,87359.0,87340.0,0.15586011]
[1767059399882,0.00017167,87359.0,87341.0,0.15476]
[1767059400179,1.67e-06,87359.0,87349.0,0.15586011]
[1767059400384,0.05736,87363.0,87349.0,0.15586011]
[1767059403182,0.05414167,87365.0,87349.0,0.15586011]
[1767059403388,0.05736,87364.0,87349.0,0.15586011]
[1767059403991,0.05736,87364.0,87350.0,0.15586011]
[1767059404193,0.05736,87364.0,87353.0,0.0114611]
[1767059404489,0.05736,87368.0,87357.0,0.0114606]
[1767059404987,0.05736,87368.0,87352.0,0.0114613]
[1767059405290,0.05736,87368.0,87356.0,0.0114609]
[1767059407607,0.05736,87368.0,87359.0,0.0114604]
[1767059409000,0.05736,87368.0,87353.0,0.0114611]
[1767059410009,0.00017167,87369.0,87353.0,0.0114611]
[1767059410904,0.00017167,87369.0,87356.0,0.0114607]
[1767059413601,0.02378304,87368.0,87356.0,0.0114607]
[1767059413796,0.00017167,87369.0,87356.0,0.0114607]
[1767059414107,0.02378304,87368.0,87356.0,0.0114607]
[1767059414308,0.02378304,87367.0,87356.0,0.0114607]
[1767059414509,0.00017167,87369.0,87356.0,0.0114607]
[1767059414711,0.02378477,87368.0,87356.0,0.0114607]
[1767059414913,0.02378477,87367.0,87356.0,0.0114607]
[1767059415108,0.02378595,87366.0,87356.0,0.0114607]
[1767059415310,0.00017167,87369.0,87356.0,0.0114607]
[1767059415606,0.02378682,87368.0,87356.0,0.0114607]
[1767059415807,0.02378682,87367.0,87356.0,0.0114607]
[1767059416013,0.02378682,87366.0,87351.0,0.0974]
[1767059416215,0.00017167,87369.0,87351.0,0.0974]
[1767059416510,0.02378905,87368.0,87351.0,0.0974]
[1767059416711,0.02378905,87367.0,87355.0,0.0114609]
[1767059416916,0.02378905,87366.0,87355.0,0.0114609]
[1767059417108,0.00017167,87369.0,87355.0,0.0114609]
[1767059417309,0.00017167,87369.0,87351.0,0.0974]
[1767059417310,0.02379018,87368.0,87351.0,0.1088614]
[1767059417614,0.02379271,87367.0,87351.0,0.0974]
[1767059417811,0.02379271,87366.0,87351.0,0.0974]
[1767059418116,0.00017167,87369.0,87351.0,0.0974]
[1767059418305,0.02379378,87368.0,87351.0,0.0974]
[1767059418614,0.00017167,87369.0,87351.0,0.0974]
[1767059418615,0.02379378,87367.0,87351.0,0.0974]
[1767059418816,0.02379378,87366.0,87351.0,0.0974]
[1767059419011,0.00017167,87369.0,87351.0,0.0974]
[1767059419211,0.02379653,87368.0,87351.0,0.0974]
[1767059419511,0.02379653,87367.0,87351.0,0.0974]
[1767059419713,0.02379653,87366.0,87351.0,0.0974]
[1767059419911,0.00017167,87369.0,87351.0,0.0974]
[1767059420113,0.02379868,87368.0,87351.0,0.0974]
[1767059420414,0.02379868,87367.0,87352.0,0.0114613]
[1767059420617,0.02379868,87366.0,87352.0,0.0114613]
[1767059420912,0.02379868,87365.0,87352.0,0.0114613]
[1767059421114,0.00017167,87369.0,87352.0,0.0114613]
[1767059421310,0.02380314,87368.0,87352.0,0.0114613]
[1767059421515,0.02380314,87367.0,87351.0,0.0974]
[1767059421814,0.02380314,87366.0,87351.0,0.0974]
[1767059422019,0.02380314,87365.0,87352.0,0.0114614]
[1767059422313,0.02380314,87364.0,87352.0,0.0114614]
[1767059422513,0.02380314,87363.0,87352.0,0.0114614]
[1767059422714,0.00017167,87369.0,87352.0,0.0114614]
[1767059422915,0.02381171,87368.0,87352.0,0.0114614]
[1767059423214,0.02381171,87367.0,87352.0,0.0114614]
[1767059423413,0.02381171,87366.0,87352.0,0.0114614]
[1767059423615,0.02381171,87365.0,87352.0,0.0114614]
[1767059423812,0.00017167,87369.0,87352.0,0.0114614]
[1767059424012,0.02381799,87368.0,87351.0,0.0974]
[1767059424212,0.00017167,87369.0,87351.0,0.0974]
[1767059427415,0.00017167,87369.0,87351.0,0.1088615]
[1767059432323,0.00017167,87369.0,87351.0,0.0974]
[1767059433424,0.00017167,87369.0,87352.0,0.0114613]
[1767059434220,0.15476,87368.0,87355.0,0.011461]
[1767059437324,0.15476,87368.0,87351.0,0.0974]
[1767059437523,0.05736,87368.0,87360.0,0.0114602]
[1767059437716,0.05736,87368.0,87351.0,0.0974]
[1767059438828,0.05736,87368.0,87355.0,0.0114609]
[1767059439428,0.05736,87368.0,87358.0,0.0114606]
[1767059441130,0.00017167,87369.0,87358.0,0.0114606]
[1767059441339,0.05736,87368.0,87358.0,0.0114606]
[1767059441535,0.05736,87368.0,87363.0,0.0114599]
[1767059442732,0.05736,87369.0,87363.0,0.0114599]
[1767059443528,0.00017167,87374.0,87351.0,0.0974]
[1767059443729,0.05736,87373.0,87367.0,0.0114593]
[1767059443931,0.05736007,87375.0,87367.0,0.0114593]
[1767059444127,7e-08,87375.0,87367.0,0.0114593]
[1767059444327,0.05736,87375.0,87367.0,0.0114593]
[1767059444523,0.05736,87376.0,87367.0,0.0114593]
[1767059445731,0.05736,87387.0,87373.0,0.0114586]
[1767059445931,0.05736,87386.0,87363.0,0.05736]
[1767059446736,0.00017167,87383.0,87366.0,0.00017167]
[1767059447338,0.04905,87382.0,87371.0,0.0114589]
[1767059451741,0.00017167,87383.0,87366.0,0.00017167]
[1767059451944,0.05736,87384.0,87366.0,0.00017167]
[1767059451945,7e-08,87384.0,87366.0,0.00017167]
[1767059452832,7e-08,87384.0,87375.0,0.0114583]
[1767059453747,6e-08,87388.0,87366.0,0.00017167]
[1767059454044,0.05736,87387.0,87366.0,0.00017167]
[1767059454345,6e-08,87388.0,87378.0,0.011458]
[1767059454848,0.05736,87390.0,87378.0,0.011458]
[1767059456539,0.05736,87390.0,87374.0,0.0114584]
[1767059456842,0.05736,87390.0,87377.0,0.0114581]
[1767059457847,0.05971,87394.0,87377.0,0.0114581]
[1767059458148,0.15476,87393.0,87377.0,0.011458]
[1767059459555,0.15476,87393.0,87366.0,0.00017167]
[1767059460147,0.0114566,87389.0,87366.0,0.00017167]
[1767059460347,0.0114566,87389.0,87366.0,0.01163107]
[1767059460739,0.011457,87386.0,87366.0,1.07e-06]
[1767059460940,0.05736,87385.0,87366.0,1.07e-06]
[1767059461142,0.05736,87385.0,87366.0,0.01146047]
[1767059461542,0.05736,87385.0,87366.0,1.07e-06]
[1767059461745,0.00017167,87384.0,87367.0,1.67e-06]
[1767059462051,0.0974,87383.0,87367.0,1.67e-06]
[1767059462845,0.0114581,87378.0,87367.0,1.67e-06]
[1767059463153,0.05736,87377.0,87368.0,0.0114593]
[1767059463652,0.05736,87380.0,87368.0,0.0114593]
[1767059464151,0.00017167,87384.0,87368.0,0.0114593]
[1767059464354,0.15476,87383.0,87368.0,0.0114593]
[1767059464855,0.00017167,87384.0,87374.0,0.0114585]
[1767059465049,0.05736,87383.0,87374.0,0.0114585]
[1767059466053,0.05736,87383.0,87367.0,1.67e-06]
[1767059470357,0.0114575,87382.0,87367.0,1.67e-06]
[1767059471058,0.04884,87381.0,87367.0,1.67e-06]
[1767059474263,0.0602976,87381.0,87367.0,1.67e-06]
[1767059474465,0.15592965,87380.0,87367.0,1.67e-06]
[1767059477567,0.0114583,87376.0,87367.0,1.67e-06]
[1767059477770,0.0114583,87376.0,87355.0,0.011461]
[1767059477771,0.0114591,87370.0,87351.0,0.0114615]
[1767059477960,0.05736,87369.0,87351.0,0.0114615]
[1767059478761,0.05736,87369.0,87351.0,0.01163317]
[1767059478961,0.0688192,87369.0,87351.0,0.00017167]
[1767059479162,0.05736,87369.0,87351.0,0.00017167]
[1767059480774,0.0688192,87369.0,87351.0,0.00017167]
[1767059481076,0.15592965,87361.0,87341.0,0.0114628]
[1767059481374,0.15592965,87361.0,87343.0,0.0114625]
[1767059481564,0.15592965,87361.0,87346.0,0.0114621]
[1767059481965,0.15592965,87361.0,87342.0,0.15476]
[1767059481966,0.15592965,87361.0,87343.0,0.0114625]
[1767059482166,0.15610132,87361.0,87343.0,0.01163417]
[1767059482569,0.15610132,87361.0,87346.0,0.0114621]
[1767059483265,0.00017167,87361.0,87346.0,0.0114621]
[1767059483664,0.00017167,87361.0,87343.0,0.00017167]
[1767059483665,0.16739005,87360.0,87343.0,0.00017167]
[1767059483873,0.16739005,87360.0,87342.0,0.0224]
[1767059484171,0.16739005,87360.0,87338.0,0.01375317]
[1767059484676,0.15592965,87350.0,87338.0,0.00228997]
[1767059485768,0.05736,87353.0,87338.0,0.00228997]
[1767059486467,0.05736,87353.0,87338.0,0.01375317]
[1767059488278,0.05736,87358.0,87338.0,0.00228997]
[1767059488671,0.05736,87358.0,87343.0,0.0114625]
[1767059493372,0.05736,87358.0,87338.0,0.00228997]
[1767059493373,0.05736,87358.0,87346.0,0.0114621]
[1767059493770,0.05736,87358.0,87338.0,0.00228997]
[1767059493978,0.05736,87357.0,87349.0,0.0114617]
[1767059494174,0.15592965,87360.0,87349.0,0.0114617]
[1767059494378,0.05736,87359.0,87349.0,0.0114617]
[1767059495980,0.05736,87358.0,87340.0,0.15592965]
[1767059496174,0.00017167,87361.0,87340.0,0.15592965]
[1767059496479,0.05736,87360.0,87340.0,0.15592965]
[1767059496974,0.05736,87360.0,87342.0,0.0114627]
[1767059497381,0.05736,87360.0,87345.0,0.0114622]
[1767059498366,0.05736,87360.0,87342.0,0.0114626]
[1767059500581,0.05736,87360.0,87340.0,0.15592965]
[1767059500791,0.21328965,87360.0,87340.0,0.15592965]
[1767059501886,0.21328965,87360.0,87341.0,0.0114628]
[1767059502683,0.21328965,87360.0,87344.0,0.0114624]
[1767059507086,0.21328965,87360.0,87340.0,0.15592965]
[1767059507390,0.21328965,87360.0,87338.0,0.00228997]
[1767059508289,0.15592965,87350.0,87338.0,0.00228997]
[1767059508683,0.15592965,87350.0,87338.0,0.01375317]
[1767059508895,0.21328965,87360.0,87341.0,0.0114628]
[1767059509289,0.21328965,87360.0,87344.0,0.0114624]
[1767059509692,0.21328965,87360.0,87340.0,0.0114629]
[1767059512589,0.21328965,87360.0,87340.0,0.16739255]
[1767059513187,0.05736,87360.0,87340.0,0.16739255]
[1767059513486,0.21328965,87360.0,87340.0,0.16739255]
[1767059515184,0.0114605,87359.0,87338.0,0.00228997]
[1767059515788,0.0114605,87359.0,87339.0,0.0114631]
[1767059515997,0.21328965,87360.0,87339.0,0.0114631]
[1767059516708,0.22475005,87360.0,87339.0,0.0114631]
[1767059520209,0.22475005,87360.0,87338.0,0.01375307]
[1767059520411,0.0114608,87357.0,87338.0,0.00228997]
[1767059520599,0.21328965,87360.0,87338.0,0.00228997]
[1767059521211,0.0114611,87355.0,87338.0,0.00228997]
[1767059521411,0.05736,87354.0,87338.0,0.00228997]
[1767059522705,0.0114613,87353.0,87338.0,0.00228997]
[1767059523410,0.15592965,87350.0,87335.0,0.00017167]
[1767059523613,0.15592965,87345.0,87327.0,0.05736]
[1767059523915,0.05736,87344.0,87327.0,0.05736]
[1767059524115,0.05736,87344.0,87327.0,0.0688246]
[1767059524516,8.141e-05,87343.0,87327.0,0.06899627]
[1767059525817,8.141e-05,87343.0,87327.0,0.05753167]
[1767059526522,0.01154411,87343.0,87327.0,0.05753167]
[1767059528712,8.141e-05,87343.0,87327.0,0.05753167]
[1767059530222,8.141e-05,87343.0,87327.0,0.06899627]
[1767059530513,8.141e-05,87343.0,87327.0,0.05753167]
[1767059531920,0.04861,87342.0,87327.0,0.05753167]
[1767059532220,0.04861,87342.0,87328.0,0.0114645]
[1767059533019,0.04861,87342.0,87331.0,0.0114641]
[1767059533320,0.04861,87342.0,87327.0,0.05753167]
[1767059534519,0.04861,87342.0,87327.0,0.06899627]
[1767059534717,0.04861,87342.0,87330.0,0.15592965]
[1767059535521,0.04861,87342.0,87327.0,0.05753167]
[1767059542221,0.04861,87342.0,87328.0,0.0114645]
[1767059553833,0.04861,87342.0,87327.0,0.05753167]
[1767059567036,8.141e-05,87343.0,87327.0,0.05753167]
[1767059568737,0.0114628,87342.0,87327.0,0.05753167]
[1767059569939,8.141e-05,87343.0,87327.0,0.05753167]
[1767059571244,0.04957,87342.0,87327.0,0.05753167]
[1767059575041,0.04957,87342.0,87327.0,0.06899637]
[1767059575630,0.04957,87342.0,87327.0,0.05753167]
[1767059577747,0.04957,87342.0,87328.0,0.0114645]
[1767059579850,0.04957,87342.0,87327.0,0.05753167]
[1767059585654,1.67e-06,87344.0,87331.0,0.0114641]
[1767059585959,0.05736,87352.0,87331.0,0.0114641]
[1767059586760,0.00017167,87350.0,87334.0,0.0114637]
[1767059586957,0.00017167,87350.0,87342.0,0.0114627]
[1767059587161,0.09744,87365.0,87345.0,0.0114622]
[1767059587348,0.1548,87365.0,87345.0,0.0114622]
[1767059588056,0.00017167,87364.0,87354.0,0.0114611]
[1767059588260,0.00228918,87368.0,87353.0,0.05736]
[1767059589762,0.06884167,87369.0,87353.0,0.0688212]
[1767059589962,0.06884167,87369.0,87353.0,0.05736]
[1767059592664,0.01884167,87369.0,87354.0,0.0114611]
[1767059592864,0.0974,87385.0,87364.0,0.0114598]
[1767059593163,0.15476,87384.0,87368.0,0.0114592]
[1767059593367,0.05736,87384.0,87368.0,0.0114592]
[1767059594864,0.05736,87384.0,87367.0,0.00017167]
[1767059595269,0.06696,87383.0,87367.0,0.00017167]
[1767059598563,0.06696,87383.0,87370.0,0.15588236]
[1767059601057,0.0114559,87394.0,87373.0,0.15588236]
[1767059601261,0.05736,87395.0,87380.0,0.15588236]
[1767059601658,0.0688158,87395.0,87374.0,0.15476]
[1767059602561,0.0688158,87395.0,87380.0,0.15588236]
[1767059605871,0.05736,87395.0,87380.0,0.15588236]
[1767059606967,0.05736,87395.0,87381.0,0.05736]
[1767059607163,0.05736,87395.0,87385.0,0.15588236]
[1767059607366,0.06057,87396.0,87385.0,0.15588236]
[1767059611770,0.06057,87396.0,87381.0,0.05736]
[1767059614975,0.0720257,87396.0,87381.0,0.05736]
[1767059615978,0.011456,87393.0,87381.0,0.05736]
[1767059616168,0.0114558,87395.0,87382.0,0.05736]
[1767059619281,0.0114558,87395.0,87367.0,0.00017167]
[1767059619282,0.0114564,87391.0,87375.0,0.09736]
[1767059619580,0.0114567,87388.0,87376.0,0.05718685]
[1767059619781,0.0114567,87388.0,87376.0,0.05736]
[1767059620578,0.0114572,87385.0,87376.0,0.05736]
[1767059620779,0.15588236,87392.0,87374.0,0.05736]
[1767059622673,0.0114574,87383.0,87374.0,0.05736]
[1767059623881,0.0114569,87387.0,87374.0,0.05736]
[1767059624583,0.05736,87388.0,87374.0,0.05736]
[1767059626088,0.06057,87396.0,87378.0,0.15588236]
[1767059626284,0.0720257,87396.0,87378.0,0.15588236]
[1767059630490,0.06057,87396.0,87374.0,0.05736]
[1767059630690,0.0114558,87395.0,87374.0,0.05736]
[1767059631780,0.06057,87396.0,87374.0,0.05736]
[1767059633897,0.06057,87396.0,87375.0,0.0114584]
[1767059634894,0.06057,87396.0,87380.0,0.15588236]
[1767059635094,0.06057,87396.0,87381.0,0.05736]
[1767059635295,0.0114558,87395.0,87381.0,0.05736]
[1767059637499,0.06057,87396.0,87381.0,0.05736]
[1767059637694,0.0720257,87396.0,87381.0,0.05736]
[1767059640989,0.0114561,87393.0,87381.0,0.05736]
[1767059642001,0.06057,87396.0,87381.0,0.05736]
[1767059642301,0.0114562,87392.0,87381.0,0.05736]
[1767059643593,0.0114574,87383.0,87382.0,0.05736]
[1767059643892,0.0114569,87387.0,87376.0,0.05736]
[1767059647100,0.0114566,87389.0,87376.0,0.05736]
[1767059647894,0.011457,87386.0,87376.0,0.05736]
[1767059649198,0.15588236,87390.0,87374.0,0.05736]
[1767059649998,0.16733886,87390.0,87374.0,0.05736]
[1767059650193,0.0114569,87387.0,87374.0,0.05736]
[1767059650398,0.05736,87391.0,87374.0,0.05736]
[1767059650594,0.16733876,87390.0,87374.0,0.05736]
[1767059651002,0.15588236,87390.0,87374.0,0.05736]
[1767059651601,0.05736,87391.0,87374.0,0.05736]
[1767059651798,0.15588236,87390.0,87374.0,0.05736]
[1767059651999,0.05736,87391.0,87374.0,0.05736]
[1767059653307,0.15588236,87390.0,87367.0,0.00017167]
[1767059653508,0.16733886,87390.0,87370.0,0.15588236]
[1767059653906,0.0114565,87390.0,87370.0,0.15588236]
[1767059654605,0.05736,87391.0,87370.0,0.15588236]
[1767059656615,0.0688163,87391.0,87370.0,0.15588236]
[1767059656813,0.15588236,87390.0,87370.0,0.15588236]
[1767059657913,0.05736,87391.0,87370.0,0.15588236]
[1767059658515,0.05736,87391.0,87368.0,0.15472]
[1767059659621,0.06736,87390.0,87368.0,0.15472]
[1767059660428,0.06736,87390.0,87369.0,0.0114592]
[1767059661320,0.06736,87390.0,87368.0,0.15472]
[1767059664015,0.06736,87390.0,87369.0,0.0114591]
[1767059667516,0.06736,87390.0,87368.0,0.15472]
[1767059667827,0.06736,87390.0,87368.0,0.1661793]
[1767059672227,0.06736,87390.0,87371.0,0.0114588]
[1767059672429,0.06736,87390.0,87372.0,0.01779956]
[1767059672627,0.06736,87390.0,87373.0,0.01779956]
[1767059672924,0.06736,87390.0,87371.0,0.0114588]
[1767059672925,0.06736,87390.0,87374.0,0.07515956]
[1767059673123,0.06736,87390.0,87375.0,0.01779956]
[1767059673324,0.06736,87390.0,87374.0,0.05736]
[1767059673325,0.06736,87390.0,87376.0,0.01779956]
[1767059673525,0.06736,87390.0,87377.0,0.01779956]
[1767059673726,0.06736,87390.0,87378.0,0.01779956]
[1767059673932,0.06736,87390.0,87379.0,0.01779956]
[1767059674127,0.06736,87390.0,87380.0,0.01779956]
[1767059674330,0.06736,87390.0,87381.0,0.01779956]
[1767059674525,0.06736,87390.0,87382.0,0.01779956]
[1767059674828,0.06736,87390.0,87383.0,0.01779956]
[1767059675126,0.06736,87390.0,87384.0,0.01779956]
[1767059675429,0.06736,87390.0,87374.0,0.05736]
[1767059675625,0.06736,87390.0,87375.0,0.01781092]
[1767059675829,0.06736,87390.0,87376.0,0.01781092]
[1767059676025,0.06736,87390.0,87377.0,0.01781092]
[1767059676231,0.06736,87390.0,87378.0,0.01781092]
[1767059676428,0.06736,87390.0,87379.0,0.01781092]
[1767059676623,0.06736,87390.0,87380.0,0.01781092]
[1767059676823,0.06736,87390.0,87381.0,0.01781092]
[1767059677024,0.06736,87390.0,87382.0,0.01781092]
[1767059677332,0.06736,87390.0,87374.0,0.05736]
[1767059677531,0.06736,87390.0,87375.0,0.01791449]
[1767059677720,0.06736,87390.0,87376.0,0.01791449]
[1767059677923,0.06736,87390.0,87377.0,0.01791449]
[1767059678129,0.06736,87390.0,87378.0,0.01791449]
[1767059678330,0.06736,87390.0,87379.0,0.01791449]
[1767059678531,0.06736,87390.0,87380.0,0.01791449]
[1767059678730,0.06736,87390.0,87381.0,0.01791449]
[1767059678933,0.06736,87390.0,87374.0,0.05736]
[1767059679133,0.06736,87390.0,87375.0,0.01791449]
[1767059679427,0.06736,87390.0,87376.0,0.01791449]
[1767059679631,0.06736,87390.0,87377.0,0.01791449]
[1767059679828,0.06736,87390.0,87378.0,0.01791449]
[1767059680029,0.00228839,87398.0,87379.0,0.01791449]
[1767059680229,0.05736,87397.0,87380.0,0.01791449]
[1767059680533,0.05736,87397.0,87381.0,0.01791449]
[1767059680732,0.05736,87397.0,87382.0,0.01791449]
[1767059681034,0.05736,87397.0,87383.0,0.01791449]
[1767059681234,0.05736,87397.0,87384.0,0.01791449]
[1767059681439,0.05736,87397.0,87385.0,0.01791449]
[1767059681732,0.05736,87397.0,87378.0,0.0114579]
[1767059681927,0.05736,87397.0,87379.0,0.01791329]
[1767059682127,0.05736,87397.0,87380.0,0.01791329]
[1767059682335,0.05736,87397.0,87381.0,0.01791329]
[1767059682634,0.05736,87397.0,87382.0,0.01791329]
[1767059682835,0.1064,87397.0,87383.0,0.01791329]
[1767059683034,0.1064,87397.0,87384.0,0.01791329]
[1767059683235,0.1064,87397.0,87378.0,0.0114579]
[1767059683435,0.1064,87397.0,87379.0,0.01791329]
[1767059683736,0.1064,87397.0,87380.0,0.01791329]
[1767059683929,0.1064,87397.0,87381.0,0.01791329]
[1767059684131,0.1064,87397.0,87382.0,0.01791329]
[1767059684430,0.1064,87397.0,87383.0,0.01791329]
[1767059684633,0.1064,87397.0,87384.0,0.01791329]
[1767059684933,0.1064,87397.0,87385.0,0.01791329]
[1767059685132,0.1064,87397.0,87386.0,0.01791329]
[1767059685330,0.1064,87397.0,87378.0,0.1088179]
[1767059685531,0.1064,87397.0,87379.0,0.01791329]
[1767059685732,0.1064,87397.0,87380.0,0.01791329]
[1767059685932,0.1064,87397.0,87381.0,0.01791329]
[1767059686126,0.1064,87397.0,87382.0,0.01791329]
[1767059686423,0.1064,87397.0,87383.0,0.01791329]
[1767059686627,0.1064,87397.0,87384.0,0.01791329]
[1767059686933,0.1064,87397.0,87385.0,0.01791329]
[1767059687131,0.1064,87397.0,87386.0,0.01791329]
[1767059687334,0.1064,87397.0,87378.0,0.1088179]
[1767059687536,0.1064,87397.0,87379.0,0.01791329]
[1767059687735,0.1064,87397.0,87378.0,0.1088179]
[1767059687736,0.1064,87397.0,87380.0,0.01791329]
[1767059687935,0.1064,87397.0,87381.0,0.01791329]
[1767059688133,0.1064,87397.0,87382.0,0.01791329]
[1767059688335,0.1064,87397.0,87383.0,0.01791329]
[1767059688636,0.1064,87397.0,87384.0,0.01791329]
[1767059688837,0.1064,87397.0,87385.0,0.01791329]
[1767059689036,0.1064,87397.0,87386.0,0.01791329]
[1767059689337,0.1064,87397.0,87378.0,0.1088179]
[1767059689539,0.1064,87397.0,87380.0,0.0114577]
[1767059689737,0.1064,87397.0,87381.0,0.01791324]
[1767059689938,0.1064,87397.0,87382.0,0.01791324]
[1767059690138,0.1064,87397.0,87383.0,0.01791322]
[1767059690339,0.1064,87397.0,87384.0,0.01791322]
[1767059690535,0.1064,87397.0,87380.0,0.0114577]
[1767059690841,0.1064,87397.0,87381.0,0.01791321]
[1767059691040,0.1064,87397.0,87382.0,0.01791321]
[1767059691236,0.1064,87397.0,87383.0,0.01791321]
[1767059691435,0.1064,87397.0,87384.0,0.01791321]
[1767059691739,0.1064,87397.0,87378.0,0.09736]
[1767059691740,0.1064,87397.0,87385.0,0.01791321]
[1767059691935,0.1064,87397.0,87386.0,0.01791321]
[1767059692137,0.1064,87397.0,87378.0,0.09736]
[1767059692333,0.1064,87397.0,87379.0,0.01791325]
[1767059692533,0.1064,87397.0,87380.0,0.01791325]
[1767059692840,0.1064,87397.0,87378.0,0.09736]
[1767059692841,0.1064,87397.0,87381.0,0.01791325]
[1767059693038,0.1064,87397.0,87382.0,0.01791325]
[1767059693241,0.1064,87397.0,87378.0,0.09736]
[1767059694840,0.1064,87397.0,87370.0,0.011459]
[1767059695048,0.1064,87397.0,87362.0,0.09503692]
[1767059695049,0.1064,87397.0,87376.0,0.05736]
[1767059695733,0.0114558,87395.0,87376.0,0.05736]
[1767059696237,0.0114558,87395.0,87362.0,0.05395522]
[1767059696238,0.0114558,87395.0,87369.0,0.0114591]
[1767059696429,0.0114558,87395.0,87370.0,0.15472]
[1767059698545,0.0114558,87395.0,87370.0,0.166179]
[1767059698842,0.1064,87397.0,87370.0,0.09736]
[1767059700342,0.0114562,87392.0,87370.0,0.09736]
[1767059700542,0.0114565,87390.0,87370.0,0.09736]
[1767059701446,0.05736,87391.0,87370.0,0.09736]
[1767059701447,0.0114568,87387.0,87370.0,0.09736]
[1767059702146,0.0688164,87391.0,87370.0,0.09736]
[1767059704347,0.0688163,87391.0,87370.0,0.09736]
[1767059705351,0.0688163,87391.0,87371.0,0.01791439]
[1767059705541,0.0643,87390.0,87372.0,0.01791439]